[Event "Titled Tuesday Blitz April 26 Early 2022"]
[White "Oye-Stromberg, Alexander"]
[Black "Xu, Yi"]
[WhiteFideId "1525999"]
[BlackFideId "8605564"]
[WhiteElo "1934"]
[BlackElo "2471"]
[Result "1/2-1/2"]
[Round "03"]
[TimeControl "180+1"]
[Date "2022.04.26"]
[WhiteClock "0:00:12"]
[BlackClock "0:00:04"]

1. e4 {[%clk 0:03:00]}  c5 {[%clk 0:02:59]} 2. Ne2 {[%clk 0:02:58]}  d6 {[%clk 0:02:59]} 3. Nbc3 {[%clk 0:02:57]}  Nf6 {[%clk 0:02:58]} 4. g3 {[%clk 0:02:56]}  g6 {[%clk 0:02:53]} 5. Bg2 {[%clk 0:02:56]}  Nc6 {[%clk 0:02:52]} 6. O-O {[%clk 0:02:55]}  Bg7 {[%clk 0:02:52]} 7. d4 {[%clk 0:02:56]}  cxd4 {[%clk 0:02:51]} 8. Nxd4 {[%clk 0:02:56]}  Nxd4 {[%clk 0:02:45]} 9. Qxd4 {[%clk 0:02:56]}  O-O {[%clk 0:02:46]} 10. Qd3 {[%clk 0:02:30]}  Be6 {[%clk 0:02:39]} 11. b3 {[%clk 0:02:28]}  Rc8 {[%clk 0:02:33]} 12. Bb2 {[%clk 0:02:28]}  Nd7 {[%clk 0:02:27]} 13. f4 {[%clk 0:02:02]}  Qa5 {[%clk 0:02:06]} 14. Nd1 {[%clk 0:01:41]}  Bxb2 {[%clk 0:01:47]} 15. Nxb2 {[%clk 0:01:41]}  Rc3 {[%clk 0:01:30]} 16. Qd2 {[%clk 0:01:05]}  Qc7 {[%clk 0:00:43]} 17. Rf2 {[%clk 0:00:59]}  Nf6 {[%clk 0:00:40]} 18. Nd1 {[%clk 0:00:51]}  Rc5 {[%clk 0:00:37]} 19. c4 {[%clk 0:00:49]}  b5 {[%clk 0:00:37]} 20. cxb5 {[%clk 0:00:47]}  Rxb5 {[%clk 0:00:37]} 21. h3 {[%clk 0:00:43]}  Rc8 {[%clk 0:00:36]} 22. Ne3 {[%clk 0:00:32]}  Rc5 {[%clk 0:00:36]} 23. g4 {[%clk 0:00:30]}  a5 {[%clk 0:00:33]} 24. g5 {[%clk 0:00:30]}  Nh5 {[%clk 0:00:30]} 25. f5 {[%clk 0:00:30]}  Bd7 {[%clk 0:00:29]} 26. Nd5 {[%clk 0:00:27]}  Rxd5 {[%clk 0:00:20]} 27. exd5 {[%clk 0:00:27]}  Bxf5 {[%clk 0:00:19]} 28. Re1 {[%clk 0:00:27]}  a4 {[%clk 0:00:17]} 29. Qe2 {[%clk 0:00:26]}  axb3 {[%clk 0:00:12]} 30. axb3 {[%clk 0:00:26]}  Re8 {[%clk 0:00:11]} 31. Qe3 {[%clk 0:00:24]}  Qb7 {[%clk 0:00:10]} 32. Rb2 {[%clk 0:00:19]}  Qb4 {[%clk 0:00:10]} 33. Kh1 {[%clk 0:00:19]}  Nf4 {[%clk 0:00:10]} 34. Kh2 {[%clk 0:00:14]}  Nd3 {[%clk 0:00:10]} 35. Ree2 {[%clk 0:00:13]}  Nxb2 {[%clk 0:00:10]} 36. Rxb2 {[%clk 0:00:14]}  Qa3 {[%clk 0:00:08]} 37. Re2 {[%clk 0:00:14]}  Qb4 {[%clk 0:00:06]} 38. Rb2 {[%clk 0:00:14]}  Bd7 {[%clk 0:00:06]} 39. Re2 {[%clk 0:00:13]}  Bb5 {[%clk 0:00:05]} 40. Rb2 {[%clk 0:00:13]}  Ba6 {[%clk 0:00:04]} 41. Rb1 {[%clk 0:00:13]}  Bc8 {[%clk 0:00:04]} 42. Rb2 {[%clk 0:00:12]}  Bd7 {[%clk 0:00:04]} 43. Re2 {[%clk 0:00:13]}  Bf5 {[%clk 0:00:04]} 44. Rb2 {[%clk 0:00:12]} 1/2-1/2


[Site "https://www.chess.com"]

[Event "Titled Tuesday Blitz April 26 Early 2022"]
[White "Pham, Le Thao Nguyen"]
[Black "Fernandez Siles, Luis"]
[WhiteFideId "12401226"]
[BlackFideId "2209420"]
[WhiteElo "2271"]
[BlackElo "2212"]
[Result "0-1"]
[Round "03"]
[TimeControl "180+1"]
[Date "2022.04.26"]
[WhiteClock "0:00:06"]
[BlackClock "0:00:11"]

1. d4 {[%clk 0:00:02]}  Nf6 {[%clk 0:02:50]} 2. Nf3 {[%clk 0:00:03]}  g6 {[%clk 0:02:50]} 3. g3 {[%clk 0:00:04]}  Bg7 {[%clk 0:02:51]} 4. Bg2 {[%clk 0:00:05]}  O-O {[%clk 0:02:51]} 5. O-O {[%clk 0:00:06]}  d6 {[%clk 0:02:52]} 6. c3 {[%clk 0:00:06]}  Nbd7 {[%clk 0:02:45]} 7. Nbd2 {[%clk 0:00:07]}  e5 {[%clk 0:02:44]} 8. e4 {[%clk 0:00:08]}  c6 {[%clk 0:02:36]} 9. Re1 {[%clk 0:00:08]}  a5 {[%clk 0:02:29]} 10. h3 {[%clk 0:00:07]}  a4 {[%clk 0:02:28]} 11. Qc2 {[%clk 0:00:08]}  Re8 {[%clk 0:02:25]} 12. Nc4 {[%clk 0:00:08]}  Qe7 {[%clk 0:02:09]} 13. dxe5 {[%clk 0:00:08]}  Nxe5 {[%clk 0:02:04]} 14. Nfxe5 {[%clk 0:00:09]}  dxe5 {[%clk 0:02:04]} 15. Be3 {[%clk 0:00:08]}  Nd7 {[%clk 0:01:54]} 16. Rad1 {[%clk 0:00:07]}  b5 {[%clk 0:01:53]} 17. Nd6 {[%clk 0:00:08]}  Rd8 {[%clk 0:01:46]} 18. a3 {[%clk 0:00:08]}  Qe6 {[%clk 0:01:32]} 19. Nxc8 {[%clk 0:00:08]}  Raxc8 {[%clk 0:01:32]} 20. Kh2 {[%clk 0:00:08]}  Bf8 {[%clk 0:01:23]} 21. h4 {[%clk 0:00:08]}  Qe7 {[%clk 0:00:54]} 22. Bh3 {[%clk 0:00:08]}  Rb8 {[%clk 0:00:53]} 23. Kg2 {[%clk 0:00:08]}  h6 {[%clk 0:00:46]} 24. Rd2 {[%clk 0:00:09]}  Nf6 {[%clk 0:00:45]} 25. Red1 {[%clk 0:00:09]}  Rxd2 {[%clk 0:00:44]} 26. Rxd2 {[%clk 0:00:09]}  Rd8 {[%clk 0:00:42]} 27. f3 {[%clk 0:00:08]}  h5 {[%clk 0:00:38]} 28. Qd1 {[%clk 0:00:07]}  Rxd2+ {[%clk 0:00:37]} 29. Qxd2 {[%clk 0:00:08]}  Qd6 {[%clk 0:00:33]} 30. Qf2 {[%clk 0:00:07]}  Kh7 {[%clk 0:00:24]} 31. Qd2 {[%clk 0:00:08]}  Qxd2+ {[%clk 0:00:22]} 32. Bxd2 {[%clk 0:00:09]}  Bh6 {[%clk 0:00:22]} 33. Bg5 {[%clk 0:00:09]}  Bg7 {[%clk 0:00:19]} 34. Kf2 {[%clk 0:00:08]}  c5 {[%clk 0:00:18]} 35. Bc8 {[%clk 0:00:07]}  Ne8 {[%clk 0:00:16]} 36. Bd7 {[%clk 0:00:07]}  Nd6 {[%clk 0:00:14]} 37. Be7 {[%clk 0:00:07]}  Nc4 {[%clk 0:00:14]} 38. Bxc5 {[%clk 0:00:07]}  Nxb2 {[%clk 0:00:14]} 39. Bb4 {[%clk 0:00:08]}  Kg8 {[%clk 0:00:12]} 40. Bxb5 {[%clk 0:00:08]}  Bf8 {[%clk 0:00:13]} 41. c4 {[%clk 0:00:05]}  Bxb4 {[%clk 0:00:11]} 42. axb4 {[%clk 0:00:06]}  a3 {[%clk 0:00:11]} 43. c5 {[%clk 0:00:05]}  a2 {[%clk 0:00:12]} 44. c6 {[%clk 0:00:05]}  a1=Q {[%clk 0:00:12]} 45. c7 {[%clk 0:00:06]}  Qc1 {[%clk 0:00:11]} 0-1


[Site "https://www.chess.com"]

[Event "Titled Tuesday Blitz April 26 Early 2022"]
[White "Plotnikov, Pavel"]
[Black "Seifert, Henryk"]
[WhiteFideId "4170342"]
[BlackFideId "1100963"]
[WhiteElo "2298"]
[BlackElo "2120"]
[Result "1/2-1/2"]
[Round "03"]
[TimeControl "180+1"]
[Date "2022.04.26"]
[WhiteClock "0:00:06"]
[BlackClock "0:00:22"]

1. e4 {[%clk 0:02:59]}  e6 {[%clk 0:02:59]} 2. d4 {[%clk 0:02:59]}  d5 {[%clk 0:02:59]} 3. Nd2 {[%clk 0:02:59]}  c5 {[%clk 0:02:58]} 4. exd5 {[%clk 0:02:59]}  exd5 {[%clk 0:02:58]} 5. Ngf3 {[%clk 0:02:57]}  Nc6 {[%clk 0:02:57]} 6. Bb5 {[%clk 0:02:56]}  Bd6 {[%clk 0:02:56]} 7. O-O {[%clk 0:02:56]}  cxd4 {[%clk 0:02:51]} 8. Nxd4 {[%clk 0:02:53]}  Bxh2+ {[%clk 0:02:48]} 9. Kxh2 {[%clk 0:02:49]}  Qh4+ {[%clk 0:02:49]} 10. Kg1 {[%clk 0:02:49]}  Qxd4 {[%clk 0:02:46]} 11. Qe2+ {[%clk 0:02:41]}  Ne7 {[%clk 0:02:38]} 12. Nf3 {[%clk 0:02:21]}  Qe4 {[%clk 0:02:27]} 13. Bxc6+ {[%clk 0:01:55]}  Nxc6 {[%clk 0:02:09]} 14. Re1 {[%clk 0:01:24]}  Qxe2 {[%clk 0:01:40]} 15. Rxe2+ {[%clk 0:01:25]}  Kf8 {[%clk 0:01:39]} 16. Bf4 {[%clk 0:01:18]}  Be6 {[%clk 0:01:29]} 17. Rae1 {[%clk 0:01:07]}  Ke7 {[%clk 0:01:16]} 18. c3 {[%clk 0:00:53]}  h6 {[%clk 0:01:09]} 19. Be5 {[%clk 0:00:39]}  Nxe5 {[%clk 0:01:02]} 20. Rxe5 {[%clk 0:00:40]}  Kd6 {[%clk 0:00:54]} 21. Nd4 {[%clk 0:00:40]}  Bd7 {[%clk 0:00:39]} 22. Nf5+ {[%clk 0:00:21]}  Bxf5 {[%clk 0:00:34]} 23. Rxf5 {[%clk 0:00:22]}  Rhf8 {[%clk 0:00:32]} 24. Rd1 {[%clk 0:00:19]}  Rad8 {[%clk 0:00:28]} 25. Rfxd5+ {[%clk 0:00:16]}  Kc7 {[%clk 0:00:25]} 26. f4 {[%clk 0:00:11]}  Rxd5 {[%clk 0:00:24]} 27. Rxd5 {[%clk 0:00:12]}  Rd8 {[%clk 0:00:23]} 28. Rxd8 {[%clk 0:00:10]}  Kxd8 {[%clk 0:00:24]} 29. Kf2 {[%clk 0:00:10]}  f5 {[%clk 0:00:23]} 30. Ke3 {[%clk 0:00:10]}  Ke7 {[%clk 0:00:22]} 31. Kd4 {[%clk 0:00:10]}  Kd6 {[%clk 0:00:22]} 32. c4 {[%clk 0:00:09]}  b6 {[%clk 0:00:22]} 33. b4 {[%clk 0:00:09]}  g5 {[%clk 0:00:22]} 34. c5+ {[%clk 0:00:08]}  bxc5+ {[%clk 0:00:22]} 35. bxc5+ {[%clk 0:00:08]}  Ke6 {[%clk 0:00:22]} 36. fxg5 {[%clk 0:00:04]}  hxg5 {[%clk 0:00:23]} 37. c6 {[%clk 0:00:04]}  Kd6 {[%clk 0:00:22]} 38. c7 {[%clk 0:00:04]}  Kxc7 {[%clk 0:00:21]} 39. Ke5 {[%clk 0:00:05]}  f4 {[%clk 0:00:21]} 40. Kf5 {[%clk 0:00:05]}  Kd6 {[%clk 0:00:21]} 41. Kxg5 {[%clk 0:00:05]}  Ke5 {[%clk 0:00:21]} 42. Kg4 {[%clk 0:00:05]}  Ke4 {[%clk 0:00:21]} 43. Kg5 {[%clk 0:00:06]}  Ke5 {[%clk 0:00:21]} 44. Kg4 {[%clk 0:00:05]}  Ke4 {[%clk 0:00:22]} 45. Kg5 {[%clk 0:00:06]}  Ke5 {[%clk 0:00:22]} 1/2-1/2


[Site "https://www.chess.com"]

[Event "Titled Tuesday Blitz April 26 Early 2022"]
[White "Przybylski, Wojciech"]
[Black "Starozhilov, Leonid"]
[WhiteFideId "1117599"]
[BlackFideId "14106752"]
[WhiteElo "2133"]
[BlackElo "2414"]
[Result "0-1"]
[Round "03"]
[TimeControl "180+1"]
[Date "2022.04.26"]
[WhiteClock "0:00:03"]
[BlackClock "0:00:07"]

1. d4 {[%clk 0:03:00]}  Nf6 {[%clk 0:03:00]} 2. c4 {[%clk 0:02:54]}  g6 {[%clk 0:02:59]} 3. Nc3 {[%clk 0:02:52]}  Bg7 {[%clk 0:02:59]} 4. h3 {[%clk 0:02:51]}  d5 {[%clk 0:02:58]} 5. Nf3 {[%clk 0:02:48]}  c5 {[%clk 0:02:58]} 6. e3 {[%clk 0:02:44]}  cxd4 {[%clk 0:02:53]} 7. Nxd4 {[%clk 0:02:43]}  O-O {[%clk 0:02:52]} 8. Be2 {[%clk 0:02:37]}  Nc6 {[%clk 0:02:52]} 9. Nxc6 {[%clk 0:02:36]}  bxc6 {[%clk 0:02:52]} 10. O-O {[%clk 0:02:35]}  Rb8 {[%clk 0:02:50]} 11. Bf3 {[%clk 0:02:28]}  Ba6 {[%clk 0:02:47]} 12. Be2 {[%clk 0:02:22]}  Bxc4 {[%clk 0:02:43]} 13. Bxc4 {[%clk 0:02:22]}  dxc4 {[%clk 0:02:44]} 14. Qa4 {[%clk 0:02:21]}  Nd5 {[%clk 0:02:41]} 15. Qxc4 {[%clk 0:02:16]}  Nxc3 {[%clk 0:02:38]} 16. bxc3 {[%clk 0:02:16]}  Qd5 {[%clk 0:02:38]} 17. Qxd5 {[%clk 0:02:05]}  cxd5 {[%clk 0:02:39]} 18. Ba3 {[%clk 0:02:01]}  Rfe8 {[%clk 0:02:24]} 19. Rac1 {[%clk 0:01:43]}  Rbc8 {[%clk 0:02:24]} 20. Rfd1 {[%clk 0:01:42]}  e6 {[%clk 0:02:24]} 21. Rd3 {[%clk 0:01:31]}  Rc4 {[%clk 0:02:12]} 22. Rc2 {[%clk 0:01:31]}  Rec8 {[%clk 0:02:12]} 23. Bb2 {[%clk 0:01:29]}  Ra4 {[%clk 0:02:11]} 24. Bc1 {[%clk 0:01:29]}  Rb8 {[%clk 0:02:05]} 25. Kf1 {[%clk 0:01:28]}  Rb1 {[%clk 0:01:57]} 26. Ke2 {[%clk 0:01:27]}  Ra1 {[%clk 0:01:47]} 27. Rdd2 {[%clk 0:01:06]}  Bf6 {[%clk 0:01:42]} 28. f3 {[%clk 0:00:57]}  Kg7 {[%clk 0:01:39]} 29. Kd3 {[%clk 0:00:56]}  Rb1 {[%clk 0:01:30]} 30. Rf2 {[%clk 0:00:43]}  Rb7 {[%clk 0:01:27]} 31. Rb2 {[%clk 0:00:39]}  Rc7 {[%clk 0:01:20]} 32. Rfc2 {[%clk 0:00:39]}  h5 {[%clk 0:01:12]} 33. Rb3 {[%clk 0:00:38]}  Rac4 {[%clk 0:01:04]} 34. Bd2 {[%clk 0:00:37]}  e5 {[%clk 0:00:55]} 35. Be1 {[%clk 0:00:36]}  e4+ {[%clk 0:00:55]} 36. Ke2 {[%clk 0:00:34]}  a6 {[%clk 0:00:42]} 37. Ra3 {[%clk 0:00:32]}  R7c6 {[%clk 0:00:41]} 38. Ra5 {[%clk 0:00:28]}  R4c5 {[%clk 0:00:28]} 39. Rxc5 {[%clk 0:00:27]}  Rxc5 {[%clk 0:00:29]} 40. Bd2 {[%clk 0:00:22]}  Rc4 {[%clk 0:00:27]} 41. f4 {[%clk 0:00:18]}  a5 {[%clk 0:00:23]} 42. Kd1 {[%clk 0:00:14]}  g5 {[%clk 0:00:20]} 43. fxg5 {[%clk 0:00:13]}  Bxg5 {[%clk 0:00:21]} 44. Rb2 {[%clk 0:00:13]}  Bf6 {[%clk 0:00:21]} 45. Rb5 {[%clk 0:00:12]}  Bxc3 {[%clk 0:00:17]} 46. Rxd5 {[%clk 0:00:10]}  Bxd2 {[%clk 0:00:17]} 47. Rxd2 {[%clk 0:00:08]}  Rc3 {[%clk 0:00:17]} 48. Ke2 {[%clk 0:00:08]}  Ra3 {[%clk 0:00:17]} 49. Kf2 {[%clk 0:00:08]}  f5 {[%clk 0:00:16]} 50. Rb2 {[%clk 0:00:07]}  h4 {[%clk 0:00:15]} 51. Re2 {[%clk 0:00:06]}  Kg6 {[%clk 0:00:16]} 52. g3 {[%clk 0:00:06]}  Kg5 {[%clk 0:00:15]} 53. gxh4+ {[%clk 0:00:05]}  Kxh4 {[%clk 0:00:16]} 54. Kg2 {[%clk 0:00:06]}  Rd3 {[%clk 0:00:16]} 55. Rf2 {[%clk 0:00:06]}  Kg5 {[%clk 0:00:14]} 56. Re2 {[%clk 0:00:06]}  a4 {[%clk 0:00:15]} 57. Kf2 {[%clk 0:00:04]}  a3 {[%clk 0:00:14]} 58. Kg2 {[%clk 0:00:04]}  Rc3 {[%clk 0:00:12]} 59. Kf2 {[%clk 0:00:04]}  Kh4 {[%clk 0:00:12]} 60. Kg2 {[%clk 0:00:04]}  Rc1 {[%clk 0:00:13]} 61. Rf2 {[%clk 0:00:04]}  Kg5 {[%clk 0:00:12]} 62. Rd2 {[%clk 0:00:03]}  Rb1 {[%clk 0:00:13]} 63. Rd8 {[%clk 0:00:02]}  Rb2+ {[%clk 0:00:13]} 64. Kg3 {[%clk 0:00:03]}  Rxa2 {[%clk 0:00:13]} 65. Rg8+ {[%clk 0:00:03]}  Kf6 {[%clk 0:00:14]} 66. Rf8+ {[%clk 0:00:03]}  Ke6 {[%clk 0:00:13]} 67. Re8+ {[%clk 0:00:04]}  Kf7 {[%clk 0:00:14]} 68. Ra8 {[%clk 0:00:03]}  Ra1 {[%clk 0:00:13]} 69. Kf4 {[%clk 0:00:03]}  Rf1+ {[%clk 0:00:08]} 70. Ke5 {[%clk 0:00:03]}  f4 {[%clk 0:00:07]} 0-1


[Site "https://www.chess.com"]

[Event "Titled Tuesday Blitz April 26 Early 2022"]
[White "Rozman, Levy"]
[Black "Buchenau, Frank"]
[WhiteFideId "2039877"]
[BlackFideId "4604350"]
[WhiteElo "2376"]
[BlackElo "2193"]
[Result "1-0"]
[Round "03"]
[TimeControl "180+1"]
[Date "2022.04.26"]
[WhiteClock "0:00:02"]
[BlackClock "0:00:06"]

1. d4 {[%clk 0:03:00]}  e6 {[%clk 0:02:59]} 2. Nf3 {[%clk 0:02:58]}  Nf6 {[%clk 0:03:00]} 3. Bg5 {[%clk 0:02:58]}  c5 {[%clk 0:02:58]} 4. e3 {[%clk 0:02:57]}  Be7 {[%clk 0:02:58]} 5. Nbd2 {[%clk 0:02:52]}  b6 {[%clk 0:02:58]} 6. Nc4 {[%clk 0:02:48]}  d5 {[%clk 0:02:51]} 7. Nce5 {[%clk 0:02:48]}  O-O {[%clk 0:02:51]} 8. c3 {[%clk 0:02:45]}  Bb7 {[%clk 0:02:45]} 9. Bd3 {[%clk 0:02:41]}  Ne4 {[%clk 0:02:41]} 10. Bxe7 {[%clk 0:02:36]}  Qxe7 {[%clk 0:02:42]} 11. Nd2 {[%clk 0:02:26]}  f6 {[%clk 0:02:40]} 12. Nef3 {[%clk 0:02:22]}  Nd7 {[%clk 0:02:34]} 13. O-O {[%clk 0:02:20]}  e5 {[%clk 0:02:30]} 14. dxc5 {[%clk 0:02:06]}  Ndxc5 {[%clk 0:02:28]} 15. Bc2 {[%clk 0:02:06]}  Rad8 {[%clk 0:02:26]} 16. a4 {[%clk 0:01:58]}  Ba6 {[%clk 0:02:24]} 17. Re1 {[%clk 0:01:55]}  Nd3 {[%clk 0:02:19]} 18. Bxd3 {[%clk 0:01:52]}  Bxd3 {[%clk 0:02:19]} 19. a5 {[%clk 0:01:51]}  b5 {[%clk 0:02:13]} 20. a6 {[%clk 0:01:47]}  Kh8 {[%clk 0:02:12]} 21. Nf1 {[%clk 0:01:42]}  Nc5 {[%clk 0:02:00]} 22. Ng3 {[%clk 0:01:40]}  Be4 {[%clk 0:01:42]} 23. Nd2 {[%clk 0:01:38]}  Bg6 {[%clk 0:01:40]} 24. Nf3 {[%clk 0:01:36]}  b4 {[%clk 0:01:34]} 25. cxb4 {[%clk 0:01:33]}  Nd3 {[%clk 0:01:34]} 26. Re2 {[%clk 0:01:33]}  Qxb4 {[%clk 0:01:31]} 27. b3 {[%clk 0:01:18]}  Rb8 {[%clk 0:01:24]} 28. h4 {[%clk 0:00:58]}  h5 {[%clk 0:01:09]} 29. Ne1 {[%clk 0:00:57]}  Qxb3 {[%clk 0:01:02]} 30. Qd2 {[%clk 0:00:51]}  Nb4 {[%clk 0:00:39]} 31. e4 {[%clk 0:00:41]}  Rfd8 {[%clk 0:00:34]} 32. Re3 {[%clk 0:00:36]}  Qc4 {[%clk 0:00:24]} 33. Rc1 {[%clk 0:00:34]}  Qxa6 {[%clk 0:00:20]} 34. exd5 {[%clk 0:00:24]}  Rxd5 {[%clk 0:00:19]} 35. Qb2 {[%clk 0:00:25]}  Nc6 {[%clk 0:00:18]} 36. Qc3 {[%clk 0:00:24]}  Nd4 {[%clk 0:00:18]} 37. Kh2 {[%clk 0:00:21]}  Rbd8 {[%clk 0:00:17]} 38. Qc7 {[%clk 0:00:16]}  R5d7 {[%clk 0:00:15]} 39. Qc3 {[%clk 0:00:16]}  Qb6 {[%clk 0:00:15]} 40. Nf3 {[%clk 0:00:15]}  Nxf3+ {[%clk 0:00:15]} 41. Rxf3 {[%clk 0:00:16]}  a5 {[%clk 0:00:14]} 42. Nf5 {[%clk 0:00:10]}  Bxf5 {[%clk 0:00:14]} 43. Rxf5 {[%clk 0:00:10]}  g6 {[%clk 0:00:14]} 44. Rf3 {[%clk 0:00:09]}  Rd4 {[%clk 0:00:14]} 45. g3 {[%clk 0:00:06]}  Rd2 {[%clk 0:00:14]} 46. Kg2 {[%clk 0:00:05]}  a4 {[%clk 0:00:14]} 47. Qc4 {[%clk 0:00:04]}  Qd4 {[%clk 0:00:13]} 48. Qf7 {[%clk 0:00:04]}  Qe4 {[%clk 0:00:09]} 49. Qxf6+ {[%clk 0:00:04]}  Kh7 {[%clk 0:00:09]} 50. Qf7+ {[%clk 0:00:04]}  Kh6 {[%clk 0:00:09]} 51. Kh2 {[%clk 0:00:01]}  R8d7 {[%clk 0:00:07]} 52. Qf8+ {[%clk 0:00:01]}  Kh7 {[%clk 0:00:06]} 53. Rc8 {[%clk 0:00:02]} 1-0


[Site "https://www.chess.com"]

[Event "Titled Tuesday Blitz April 26 Early 2022"]
[White "Rustemov, Alexander"]
[Black "Lach, Aleksandra"]
[WhiteFideId "4119002"]
[BlackFideId "1134299"]
[WhiteElo "2853"]
[BlackElo "2172"]
[Result "1-0"]
[Round "03"]
[TimeControl "180+1"]
[Date "2022.04.26"]
[WhiteClock "0:00:04"]
[BlackClock "0:00:04"]

1. d4 {[%clk 0:03:00]}  f5 {[%clk 0:02:59]} 2. g3 {[%clk 0:03:00]}  Nf6 {[%clk 0:02:58]} 3. Bg2 {[%clk 0:03:00]}  g6 {[%clk 0:02:59]} 4. Nf3 {[%clk 0:03:01]}  Bg7 {[%clk 0:02:59]} 5. O-O {[%clk 0:03:01]}  O-O {[%clk 0:02:59]} 6. c4 {[%clk 0:03:02]}  d6 {[%clk 0:03:00]} 7. Nc3 {[%clk 0:03:02]}  c6 {[%clk 0:03:00]} 8. Qc2 {[%clk 0:03:00]}  Na6 {[%clk 0:02:59]} 9. Rb1 {[%clk 0:03:00]}  Nb4 {[%clk 0:02:48]} 10. Qd1 {[%clk 0:02:59]}  a5 {[%clk 0:02:48]} 11. a3 {[%clk 0:02:56]}  Na6 {[%clk 0:02:48]} 12. Qc2 {[%clk 0:02:55]}  Qc7 {[%clk 0:02:44]} 13. b4 {[%clk 0:02:50]}  axb4 {[%clk 0:02:38]} 14. axb4 {[%clk 0:02:51]}  Qd8 {[%clk 0:02:07]} 15. b5 {[%clk 0:02:47]}  cxb5 {[%clk 0:02:04]} 16. Nxb5 {[%clk 0:02:37]}  Kh8 {[%clk 0:02:00]} 17. Bb2 {[%clk 0:02:16]}  d5 {[%clk 0:01:52]} 18. Ne5 {[%clk 0:02:07]}  Be6 {[%clk 0:01:42]} 19. Rfc1 {[%clk 0:02:00]}  Rc8 {[%clk 0:01:29]} 20. c5 {[%clk 0:01:52]}  Bd7 {[%clk 0:01:14]} 21. Ba3 {[%clk 0:01:47]}  Bc6 {[%clk 0:01:12]} 22. Na7 {[%clk 0:01:41]}  Rc7 {[%clk 0:01:12]} 23. Rb6 {[%clk 0:01:27]}  Nb8 {[%clk 0:01:10]} 24. Rcb1 {[%clk 0:01:24]}  Nfd7 {[%clk 0:01:01]} 25. f4 {[%clk 0:00:56]}  Bxe5 {[%clk 0:00:45]} 26. dxe5 {[%clk 0:00:53]}  e6 {[%clk 0:00:42]} 27. Qb3 {[%clk 0:00:37]}  Na6 {[%clk 0:00:33]} 28. Qc3 {[%clk 0:00:28]}  Re8 {[%clk 0:00:23]} 29. e3 {[%clk 0:00:28]}  Nxb6 {[%clk 0:00:19]} 30. cxb6 {[%clk 0:00:27]}  Rd7 {[%clk 0:00:18]} 31. Nxc6 {[%clk 0:00:26]}  bxc6 {[%clk 0:00:19]} 32. Qxc6 {[%clk 0:00:26]}  Nb8 {[%clk 0:00:20]} 33. Qb5 {[%clk 0:00:23]}  Qc8 {[%clk 0:00:20]} 34. Bc5 {[%clk 0:00:22]}  Qb7 {[%clk 0:00:20]} 35. Bf1 {[%clk 0:00:22]}  Rc8 {[%clk 0:00:20]} 36. Bd4 {[%clk 0:00:20]}  Nc6 {[%clk 0:00:20]} 37. Bc5 {[%clk 0:00:14]}  Rb8 {[%clk 0:00:20]} 38. Qa6 {[%clk 0:00:13]}  Qxa6 {[%clk 0:00:19]} 39. Bxa6 {[%clk 0:00:13]}  Na5 {[%clk 0:00:19]} 40. Bd6 {[%clk 0:00:11]}  Ra8 {[%clk 0:00:17]} 41. b7 {[%clk 0:00:11]}  Nxb7 {[%clk 0:00:17]} 42. Bxb7 {[%clk 0:00:11]}  Ra2 {[%clk 0:00:17]} 43. Bc8 {[%clk 0:00:10]}  Rd8 {[%clk 0:00:16]} 44. Bxe6 {[%clk 0:00:10]}  Re2 {[%clk 0:00:16]} 45. Bxd5 {[%clk 0:00:10]}  Rxe3 {[%clk 0:00:16]} 46. Kf2 {[%clk 0:00:09]}  Rd3 {[%clk 0:00:17]} 47. Rb2 {[%clk 0:00:09]}  Rxd5 {[%clk 0:00:17]} 48. Be7 {[%clk 0:00:10]}  Re8 {[%clk 0:00:16]} 49. Bf6+ {[%clk 0:00:09]}  Kg8 {[%clk 0:00:17]} 50. Rb7 {[%clk 0:00:10]}  Rd2+ {[%clk 0:00:11]} 51. Ke3 {[%clk 0:00:10]}  Rxh2 {[%clk 0:00:11]} 52. Rg7+ {[%clk 0:00:10]}  Kf8 {[%clk 0:00:12]} 53. Ra7 {[%clk 0:00:09]}  Rh3 {[%clk 0:00:11]} 54. Kf2 {[%clk 0:00:09]}  Rc8 {[%clk 0:00:11]} 55. Kg2 {[%clk 0:00:08]}  Rh5 {[%clk 0:00:10]} 56. e6 {[%clk 0:00:08]}  Re8 {[%clk 0:00:09]} 57. Ra6 {[%clk 0:00:05]}  h6 {[%clk 0:00:08]} 58. Rd6 {[%clk 0:00:05]}  g5 {[%clk 0:00:08]} 59. g4 {[%clk 0:00:04]}  fxg4 {[%clk 0:00:08]} 60. f5 {[%clk 0:00:04]}  Rh3 {[%clk 0:00:08]} 61. Rd7 {[%clk 0:00:04]}  Re3 {[%clk 0:00:04]} 62. Rh7 {[%clk 0:00:04]}  R3xe6 {[%clk 0:00:04]} 63. fxe6 {[%clk 0:00:03]}  Rxe6 {[%clk 0:00:05]} 64. Bd4 {[%clk 0:00:02]}  Rg6 {[%clk 0:00:05]} 65. Kg3 {[%clk 0:00:02]}  Kg8 {[%clk 0:00:03]} 66. Rh8+ {[%clk 0:00:02]}  Kf7 {[%clk 0:00:04]} 67. Kxg4 {[%clk 0:00:03]}  Rd6 {[%clk 0:00:04]} 68. Rh7+ {[%clk 0:00:04]}  Kg6 {[%clk 0:00:04]} 69. Rg7# {[%clk 0:00:04]} 1-0


[Site "https://www.chess.com"]